bitfinex-derivatives/quotes_BTCF0:USTF0_20241103
["timestamp","ask_amount","ask_price","bid_price","bid_amount"]
[1730622765724,0.104066,68455.0,68446.0,2.09923977]
[1730622765931,0.104066,68455.0,68454.0,0.13756988]
[1730622766527,0.104066,68455.0,68454.0,0.30488399]
[1730622767026,0.031,68455.0,68454.0,0.23204786]
[1730622767221,0.073061,68460.0,68458.0,0.073063]
[1730622767426,0.073061,68460.0,68458.0,0.13756588]
[1730622768527,0.4025,68459.0,68458.0,0.13856588]
[1730622768736,0.4115,68459.0,68458.0,0.13956588]
[1730622771142,0.49139438,68459.0,68458.0,0.13956588]
[1730622771324,0.45869438,68459.0,68458.0,0.13956588]
[1730622774637,0.53175538,68459.0,68458.0,0.13956588]
[1730622774833,0.49482593,68459.0,68458.0,0.13956588]
[1730622775142,0.53183127,68459.0,68458.0,0.13956588]
[1730622779134,0.451861,68459.0,68458.0,0.13956588]
[1730622779335,0.451861,68459.0,68458.0,0.21240165]
[1730622780447,0.451861,68459.0,68458.0,0.30695466]
[1730622781333,0.451861,68459.0,68458.0,0.23411889]
[1730622783343,0.091061,68459.0,68458.0,0.23411889]
[1730622786046,0.17086215,68459.0,68458.0,0.13956588]
[1730622787240,0.073074,68447.0,68446.0,0.00076]
[1730622787434,0.073079,68443.0,68435.0,0.06450288]
[1730622787741,0.07855977,68442.0,68440.0,0.06450288]
[1730622787940,0.07855977,68441.0,68440.0,0.06450288]
[1730622788334,0.0792369,68441.0,68440.0,0.06450288]
[1730622788540,0.0364059,68441.0,68440.0,0.06450288]
[1730622792151,0.1094869,68441.0,68440.0,0.06450288]
[1730622794241,0.073081,68441.0,68440.0,0.24697291]
[1730622795352,0.073081,68441.0,68440.0,0.15958811]
[1730622795849,0.073081,68441.0,68440.0,0.24695258]
[1730622796057,0.073081,68441.0,68440.0,0.15956778]
[1730622804152,0.073072,68450.0,68440.0,0.15956778]
[1730622804153,0.00136,68454.0,68440.0,1.02319066]
[1730622804454,0.073067,68454.0,68453.0,0.06450288]
[1730622804754,0.073067,68454.0,68453.0,1.65956778]
[1730622805144,0.073067,68454.0,68453.0,1.56450288]
[1730622805552,0.082067,68454.0,68453.0,1.56450288]
[1730622806051,0.082067,68454.0,68453.0,1.56550288]
[1730622806359,0.091067,68454.0,68453.0,1.56550288]
[1730622807055,0.091067,68454.0,68453.0,1.56650288]
[1730622807656,0.091067,68454.0,68453.0,1.502]
[1730622810459,0.12775834,68454.0,68453.0,1.502]
[1730622810654,0.05469134,68454.0,68453.0,1.575068]
[1730622816364,0.018,68454.0,68453.0,1.575068]
[1730622817458,0.018,68454.0,68453.0,1.61882249]
[1730622817955,0.018,68454.0,68453.0,1.575068]
[1730622824462,0.05488602,68454.0,68453.0,1.575068]
[1730622824659,0.14647919,68454.0,68453.0,1.575068]
[1730622826563,0.14647919,68454.0,68446.0,0.48032]
[1730622826564,0.073074,68448.0,68446.0,0.00076]
[1730622826757,1.34334427,68454.0,68439.0,0.0021913]
[1730622826758,0.073081,68441.0,68439.0,0.0021913]
[1730622826959,0.03688602,68440.0,68431.0,0.53217487]
[1730622827271,0.12778085,68439.0,68431.0,0.53217487]
[1730622827469,0.12778085,68438.0,68437.0,0.09828387]
[1730622828362,0.12778085,68438.0,68431.0,0.47949676]
[1730622828567,0.12778085,68437.0,68431.0,0.48073676]
[1730622828766,0.12778085,68436.0,68431.0,0.48073676]
[1730622828966,0.12778085,68435.0,68431.0,0.47873676]
[1730622829257,0.07971242,68434.0,68431.0,0.433891]
[1730622829577,0.08107913,68433.0,68431.0,0.433891]
[1730622829869,0.08107913,68432.0,68431.0,0.433891]
[1730622830166,0.08107913,68432.0,68431.0,0.439891]
[1730622831253,0.08107913,68432.0,68431.0,0.443891]
[1730622831461,0.001,68435.0,68432.0,0.07309]
[1730622831659,0.073083,68439.0,68433.0,0.20636162]
[1730622831858,0.073083,68439.0,68438.0,0.08753265]
[1730622832063,0.073083,68439.0,68438.0,0.18168616]
[1730622832559,0.073083,68439.0,68438.0,1.68168616]
[1730622833265,0.073083,68439.0,68438.0,1.68368616]
[1730622833578,0.073083,68439.0,68438.0,1.68568616]
[1730622834161,0.073083,68439.0,68438.0,1.68566642]
[1730622835571,0.073083,68439.0,68438.0,1.59813377]
[1730622836476,0.073083,68439.0,68438.0,1.71031693]
[1730622837370,0.073083,68439.0,68438.0,1.59813377]
[1730622838373,0.073078,68444.0,68438.0,1.78335026]
[1730622838571,0.073078,68444.0,68441.0,0.1858011]
[1730622838768,0.073078,68444.0,68442.0,0.09413377]
[1730622839076,0.073078,68444.0,68443.0,0.09413377]
[1730622839465,0.1107423,68444.0,68441.0,0.09828387]
[1730622839667,0.0376643,68443.0,68441.0,0.09828387]
[1730622842065,0.0396643,68443.0,68441.0,0.09828387]
[1730622842369,0.0376643,68442.0,68441.0,0.09828387]
[1730622843485,0.04315042,68449.0,68441.0,0.09828387]
[1730622843486,0.073068,68454.0,68446.0,0.073075]
[1730622843776,0.073068,68454.0,68453.0,0.09828387]
[1730622843979,0.095,68458.0,68453.0,1.5]
[1730622843980,0.073066,68455.0,68453.0,1.5]
[1730622844379,0.0432673,68454.0,68453.0,1.5]
[1730622845178,0.05212955,68454.0,68453.0,1.5]
[1730622845676,0.06112955,68454.0,68453.0,1.501]
[1730622845873,0.06112955,68454.0,68453.0,1.502]
[1730622846375,0.018,68454.0,68453.0,1.502]
[1730622846568,0.018,68454.0,68453.0,1.59648517]
[1730622846769,0.091067,68454.0,68453.0,1.59648517]
[1730622850480,0.091067,68454.0,68453.0,1.69476904]
[1730622854277,0.018,68454.0,68453.0,1.76783704]
[1730622854482,0.018,68454.0,68453.0,1.67335187]
[1730622857871,0.02000315,68454.0,68453.0,1.67335187]
[1730622861483,0.05710611,68454.0,68453.0,1.67335187]
[1730622861784,0.14923799,68454.0,68453.0,1.67335187]
[1730622864479,0.13823799,68454.0,68453.0,1.67235187]
[1730622864682,0.14423799,68454.0,68453.0,1.67335187]
[1730622864975,0.14433005,68454.0,68453.0,1.67335187]
[1730622866586,0.14444407,68454.0,68453.0,1.67335187]
[1730622867388,0.29034273,68454.0,68453.0,1.67335187]
[1730622869385,0.29042706,68454.0,68453.0,1.67335187]
[1730622869578,0.01500315,68454.0,68453.0,1.67335187]
[1730622869783,0.01500315,68454.0,68453.0,1.63956294]
[1730622872389,0.01500315,68454.0,68453.0,1.80714788]
[1730622872586,0.01500315,68454.0,68453.0,1.73420086]
[1730622876885,0.09549701,68454.0,68453.0,1.63956294]
[1730622877087,0.14474186,68454.0,68453.0,1.63956294]
[1730622881602,0.14452966,68454.0,68453.0,1.63956294]
[1730622882489,0.13752966,68454.0,68453.0,1.63856294]
[1730622882687,0.14452966,68454.0,68453.0,1.63956294]
[1730622883282,0.13752966,68454.0,68453.0,1.63856294]
[1730622883491,0.14352966,68454.0,68453.0,1.63956294]
[1730622883694,0.13752966,68454.0,68453.0,1.63856294]
[1730622883893,0.14352966,68454.0,68453.0,1.63956294]
[1730622884694,0.14352966,68454.0,68453.0,1.63856294]
[1730622884896,0.14352966,68454.0,68453.0,1.73332137]
[1730622884897,0.01400315,68454.0,68453.0,1.73332137]
[1730622890805,0.01400315,68454.0,68453.0,1.73340258]
[1730622892799,0.01400315,68454.0,68453.0,1.82091981]
[1730622893304,0.01400315,68454.0,68453.0,0.001]
[1730622893305,0.88611015,68454.0,68453.0,0.001]
[1730622893511,0.073073,68448.0,68447.0,0.03278817]
[1730622893696,0.433873,68448.0,68447.0,0.03278817]
[1730622894003,0.433873,68448.0,68442.0,1.5]
[1730622894004,0.36280315,68448.0,68442.0,1.5]
[1730622894300,0.073078,68444.0,68442.0,1.5]
[1730622894499,0.073078,68444.0,68443.0,0.09418529]
[1730622895096,0.07508115,68444.0,68442.0,1.50076]
[1730622895307,0.07508115,68444.0,68442.0,1.5]
[1730622895710,0.07508115,68444.0,68443.0,0.004]
[1730622896199,0.07508115,68444.0,68442.0,1.50476]
[1730622896394,0.07508115,68444.0,68442.0,1.504]
[1730622897094,0.073078,68444.0,68443.0,0.00199685]
[1730622897906,0.073078,68444.0,68443.0,0.004]
[1730622898807,0.073078,68444.0,68443.0,0.008]
[1730622900103,0.11645398,68444.0,68443.0,0.008]
[1730622900308,0.15381335,68444.0,68443.0,0.008]
[1730622901412,0.11043737,68444.0,68443.0,0.008]
[1730622901614,0.15379404,68444.0,68443.0,0.008]
[1730622902400,0.21828898,68444.0,68443.0,0.008]
[1730622903004,0.17493231,68444.0,68443.0,0.008]
[1730622905001,0.11043737,68444.0,68443.0,0.008]
[1730622907004,0.073078,68444.0,68443.0,0.10229808]
[1730622907204,0.0329,68447.0,68443.0,0.10229808]
[1730622907205,0.073058,68462.0,68448.0,0.073072]
[1730622907398,0.3608,68464.0,68459.0,0.06449494]
[1730622907399,0.07306,68460.0,68459.0,0.06449494]
[1730622907610,0.3608,68464.0,68454.0,0.06449494]
[1730622907818,0.073066,68455.0,68454.0,0.06449494]
[1730622908002,0.073066,68455.0,68454.0,1.65836697]
[1730622908615,0.073066,68455.0,68454.0,1.59387203]
[1730622909204,0.073066,68455.0,68454.0,0.09387203]
[1730622909407,0.511306,68455.0,68454.0,0.09387203]
[1730622909619,0.073072,68449.0,68448.0,0.001]
[1730622909816,0.073072,68449.0,68448.0,0.09556663]
[1730622910015,0.3608,68450.0,68446.0,1.5008]
[1730622910314,0.104173,68448.0,68447.0,0.09465423]
[1730622911613,0.073076,68445.0,68444.0,0.06449494]
[1730622911815,0.073076,68445.0,68444.0,0.15916225]
[1730622913005,0.073076,68445.0,68444.0,0.16216225]
[1730622913412,0.073076,68445.0,68444.0,0.16516225]
[1730622914117,0.073076,68445.0,68444.0,0.07049494]
[1730622916622,0.433872,68450.0,68444.0,0.07049494]
[1730622916921,0.433872,68450.0,68444.0,0.079077]
[1730622917111,0.433872,68450.0,68449.0,0.06449494]
[1730622917312,0.47030607,68450.0,68449.0,0.06449494]
[1730622917518,0.433872,68450.0,68449.0,0.06449494]
[1730622918116,0.47050429,68450.0,68449.0,0.06449494]
[1730622918328,0.39743229,68450.0,68449.0,0.13756694]
[1730622918523,0.03663229,68450.0,68449.0,0.13756694]
[1730622918821,0.002,68450.0,68449.0,0.13756694]
[1730622919023,0.004,68450.0,68449.0,0.13756694]
[1730622920226,0.04077303,68450.0,68449.0,0.13756694]
[1730622920416,0.03877303,68450.0,68449.0,0.13756694]
[1730622920630,0.04077303,68450.0,68449.0,0.13756694]
[1730622922028,0.004,68450.0,68449.0,0.31997871]
[1730622925219,0.004,68450.0,68449.0,0.32000526]
[1730622926929,0.077071,68450.0,68449.0,0.09491781]
[1730622929127,0.077071,68450.0,68443.0,0.3608]
[1730622929128,0.073077,68444.0,68443.0,0.3608]
[1730622929534,0.15202426,68444.0,68443.0,0.3608]
[1730622930322,0.07308,68442.0,68441.0,0.06449494]
[1730622930523,0.15202726,68442.0,68441.0,0.06449494]
[1730622930722,0.19998452,68442.0,68441.0,0.06449494]
[1730622932331,0.25565639,68442.0,68441.0,0.06449494]
[1730622932532,0.20098452,68442.0,68441.0,0.07049494]
[1730622932924,0.20098452,68442.0,68441.0,0.07549494]
[1730622934021,0.15302726,68442.0,68441.0,0.07549494]
[1730622934221,0.20030201,68442.0,68441.0,0.07549494]
[1730622934628,0.20029742,68442.0,68441.0,0.07549494]
[1730622935224,0.34634186,68442.0,68441.0,0.07549494]
[1730622936137,0.20029742,68442.0,68441.0,0.07549494]
[1730622936534,0.07408,68442.0,68441.0,0.17084182]
[1730622938030,0.07408,68442.0,68441.0,0.28447737]
[1730622941440,0.07408,68442.0,68441.0,1.78447737]
[1730622942727,0.07408,68442.0,68441.0,1.85755837]
[1730622943941,0.001,68442.0,68441.0,1.85755837]
[1730622944641,0.001,68442.0,68441.0,1.85724346]
[1730622944840,0.001,68442.0,68441.0,1.89044346]
[1730622946042,0.3608,68445.0,68441.0,1.81736246]
[1730622946239,0.3608,68445.0,68443.0,0.073078]
[1730622946441,0.3608,68445.0,68444.0,0.20866752]
[1730622948037,0.3608,68445.0,68444.0,0.28474452]
[1730622949143,0.3608,68445.0,68444.0,1.6712737]
[1730622949438,0.3608,68445.0,68444.0,1.6742737]
[1730622949641,0.433876,68445.0,68444.0,1.6742737]
[1730622950245,0.073076,68445.0,68444.0,1.6742737]
[1730622951947,0.073076,68445.0,68444.0,1.6011967]
[1730622952640,0.073076,68445.0,68444.0,1.506]
[1730622953451,0.1096393,68445.0,68444.0,1.506]
[1730622953649,0.10964438,68445.0,68444.0,1.506]
[1730622955241,0.10966183,68445.0,68444.0,1.506]
[1730622955450,0.1521397,68445.0,68444.0,1.506]
[1730622957350,0.1521397,68445.0,68444.0,1.579077]
[1730622958537,0.1521706,68445.0,68444.0,1.579077]
[1730622959246,0.073076,68445.0,68444.0,1.506]
[1730622959643,0.073076,68445.0,68444.0,1.60112566]
[1730622960445,0.073076,68445.0,68444.0,1.71451067]
[1730622961548,0.073076,68445.0,68444.0,1.7149203]
[1730622963054,0.073076,68445.0,68444.0,1.81700729]
[1730622963752,0.073076,68445.0,68444.0,1.7149203]
[1730622966654,0.15205012,68445.0,68444.0,1.506]
[1730622970458,0.15205012,68445.0,68444.0,1.579077]
[1730622971850,0.15205012,68445.0,68444.0,1.506]
[1730622974763,0.073076,68445.0,68444.0,1.71482876]
[1730622974974,0.073076,68445.0,68444.0,1.94874276]
[1730622975154,0.073076,68445.0,68444.0,1.71483207]
[1730622975761,0.073076,68445.0,68444.0,1.506]
[1730622976860,0.073076,68445.0,68444.0,1.71482103]
[1730622981576,0.40422596,68450.0,68444.0,1.71482103]
[1730622981577,0.073074,68448.0,68447.0,0.073074]
[1730622981773,0.073074,68448.0,68447.0,0.58049707]
[1730622981973,0.073074,68448.0,68447.0,0.58049705]
[1730622982367,0.073074,68448.0,68447.0,0.47822317]
[1730622983777,0.11649696,68450.0,68448.0,0.073073]
[1730622983974,0.073071,68450.0,68449.0,0.20882103]
[1730622985182,0.075071,68450.0,68449.0,0.28189303]
[1730622985879,0.077071,68450.0,68449.0,0.28189303]
[1730622986081,0.004,68450.0,68449.0,0.51554401]
[1730622986380,0.004,68450.0,68449.0,0.4133147]
[1730622987881,0.004,68450.0,68449.0,1.9133147]
[1730622988081,0.004,68450.0,68449.0,1.88407632]
[1730622988282,0.004,68450.0,68449.0,1.78189303]
[1730622989071,0.004,68450.0,68449.0,1.78095752]
[1730622989779,0.13237093,68450.0,68449.0,1.61766913]
[1730622991582,0.04085494,68450.0,68449.0,1.61766913]
[1730622995484,0.13248242,68450.0,68449.0,1.61766913]
[1730622995699,0.13252731,68450.0,68449.0,1.61766913]
[1730622996772,0.004,68450.0,68449.0,1.8252035]
[1730622998382,0.004,68450.0,68449.0,1.82502178]
[1730623002290,0.073065,68456.0,68452.0,0.073068]
[1730623002596,0.073065,68456.0,68455.0,0.06449494]
[1730623002790,0.073065,68456.0,68455.0,0.15909178]
[1730623003590,0.089065,68456.0,68455.0,0.15909178]
[1730623004191,0.081065,68456.0,68455.0,0.24663412]
[1730623004384,0.089065,68456.0,68455.0,0.24763412]
[1730623004890,0.28710091,68456.0,68455.0,0.06549494]
[1730623005092,0.21856807,68456.0,68455.0,0.06549494]
[1730623005692,0.37942401,68456.0,68455.0,0.06649494]
[1730623005993,0.21856807,68456.0,68455.0,0.06649494]
[1730623006590,0.29154127,68456.0,68455.0,0.20405588]
[1730623006803,0.20377283,68456.0,68455.0,0.20205588]
[1730623007091,0.20377283,68456.0,68455.0,0.13756094]
[1730623007691,0.14550307,68456.0,68455.0,0.13756094]
[1730623009294,0.21381363,68456.0,68455.0,0.13756094]
[1730623009492,0.14550307,68456.0,68455.0,0.13756094]
[1730623010492,0.14550307,68456.0,68455.0,0.20205588]
[1730623010493,0.21381363,68456.0,68455.0,0.20205588]
[1730623010705,0.14550307,68456.0,68455.0,0.20205588]
[1730623011805,0.016,68456.0,68455.0,0.40974615]
[1730623014403,0.016,68456.0,68455.0,0.44014615]
[1730623016810,0.016,68456.0,68455.0,0.4408361]
[1730623018006,0.36299152,68463.0,68458.0,0.073062]
[1730623018310,0.36299152,68463.0,68459.0,0.20838022]
[1730623018311,0.073061,68460.0,68459.0,0.20838022]
[1730623018510,0.073061,68460.0,68459.0,0.27287516]
[1730623018808,0.36299152,68463.0,68459.0,0.27287516]
[1730623019015,0.36299152,68463.0,68462.0,0.073058]
[1730623019212,0.36299152,68463.0,68462.0,0.28113332]
[1730623019519,0.37199152,68463.0,68462.0,0.23261857]
[1730623019812,0.45159457,68463.0,68462.0,0.13755294]
[1730623020014,0.46059457,68463.0,68462.0,0.13755294]
[1730623020414,0.45159457,68463.0,68462.0,0.13755294]
[1730623020610,0.46059457,68463.0,68462.0,0.13755294]
[1730623020810,0.46059457,68463.0,68462.0,0.13855294]
[1730623022118,0.45159457,68463.0,68462.0,0.13955294]
[1730623023408,0.40882693,68463.0,68462.0,0.13955294]
[1730623024419,0.50050158,68463.0,68462.0,0.13955294]
[1730623024620,0.45169142,68463.0,68462.0,0.13955294]
[1730623026821,0.37199152,68463.0,68462.0,0.34732356]
[1730623029624,0.009,68463.0,68462.0,0.34731854]
[1730623029824,0.073044,68476.0,68472.0,0.073047]
[1730623030019,0.073044,68476.0,68475.0,0.06449494]
[1730623030215,0.073044,68476.0,68475.0,1.65928246]
[1730623030929,0.073044,68476.0,68475.0,0.15928246]
[1730623031417,0.073044,68476.0,68475.0,1.74673381]
[1730623031725,0.073044,68476.0,68475.0,0.24673381]
[1730623032328,0.073044,68476.0,68475.0,1.66028246]
[1730623032519,0.080044,68476.0,68475.0,1.66128246]
[1730623034126,0.080044,68476.0,68475.0,0.16128246]
[1730623034821,0.080044,68476.0,68475.0,0.12476771]
[1730623036828,0.080044,68476.0,68475.0,0.06649494]
[1730623041731,0.080044,68476.0,68475.0,0.13953894]
[1730623041927,0.37062931,68476.0,68475.0,0.04070878]
[1730623042123,0.42909793,68476.0,68475.0,0.10520372]
[1730623042432,0.37062872,68476.0,68475.0,0.10520372]
[1730623042730,0.21028522,68476.0,68475.0,0.10520372]
[1730623043321,0.21028522,68476.0,68475.0,0.06449494]
[1730623044733,0.26742511,68476.0,68475.0,0.06449494]
[1730623049324,0.26742511,68476.0,68475.0,0.03303054]
[1730623049932,0.080044,68476.0,68475.0,0.03303054]
[1730623050744,0.00219084,68490.0,68483.0,0.073035]
[1730623050932,0.07521884,68490.0,68489.0,0.06449494]
[1730623051539,0.11926906,68490.0,68489.0,0.06449494]
[1730623052832,0.11926906,68490.0,68489.0,0.06549494]
[1730623053439,0.12126906,68490.0,68489.0,0.002]
[1730623056340,0.00419084,68490.0,68489.0,0.13952394]
[1730623056537,0.00419084,68490.0,68489.0,0.18322688]
[1730623056733,0.00419084,68490.0,68489.0,0.13952394]
[1730623057339,0.00219084,68490.0,68489.0,0.06549494]
[1730623057540,0.07721884,68490.0,68489.0,0.002]
[1730623058127,0.14171378,68490.0,68489.0,0.002]
[1730623058330,0.07721884,68490.0,68489.0,0.002]
[1730623059537,0.07721884,68490.0,68489.0,0.075029]
[1730623060732,0.00419084,68490.0,68489.0,0.075029]
[1730623062634,0.00219084,68490.0,68489.0,0.074029]
[1730623062834,0.00219084,68490.0,68489.0,0.075029]
[1730623062835,0.00419084,68490.0,68489.0,0.075029]
[1730623064346,0.00419084,68490.0,68489.0,0.13952394]
[1730623065046,0.06259011,68490.0,68489.0,0.06449494]
[1730623065249,0.19266925,68490.0,68489.0,0.06449494]
[1730623065751,0.19266925,68490.0,68489.0,8.191e-05]
[1730623066346,0.19266925,68490.0,68489.0,0.07311091]
[1730623068145,0.13426998,68490.0,68489.0,0.07311091]
[1730623069641,0.12483476,68490.0,68489.0,0.07311091]
[1730623072051,0.00419084,68490.0,68489.0,0.07311091]
[1730623072851,0.002,68490.0,68489.0,0.07311091]
[1730623074747,0.002,68490.0,68489.0,0.1175366]
[1730623076144,0.002,68490.0,68489.0,1.6175366]
[1730623076344,0.002,68490.0,68489.0,1.90154616]
[1730623077841,0.002,68490.0,68489.0,1.94525265]
[1730623078040,0.002,68490.0,68489.0,2.38329265]
[1730623079051,0.002,68490.0,68489.0,2.44778759]
[1730623079255,0.002,68490.0,68489.0,2.4040811]
[1730623080051,0.1,68500.0,68489.0,2.4040811]
[1730623080052,0.07458712,68499.0,68489.0,2.4040811]
[1730623080350,0.1,68500.0,68499.0,0.073019]
[1730623080551,0.14012307,68500.0,68499.0,0.073019]
[1730623080758,0.14012307,68500.0,68499.0,0.29262446]
[1730623081348,0.1,68500.0,68499.0,0.29262446]
[1730623081547,0.13959163,68500.0,68499.0,0.29262446]
[1730623082352,0.1,68500.0,68499.0,0.29362446]
[1730623082850,0.13956835,68500.0,68499.0,0.29362446]
[1730623083051,0.1,68500.0,68499.0,0.29362446]
[1730623083255,0.101,68500.0,68499.0,0.29462446]
[1730623083452,0.101,68500.0,68499.0,0.075019]
[1730623085450,0.101,68500.0,68499.0,0.11881486]
[1730623091151,0.101,68500.0,68499.0,0.19165582]
[1730623092168,0.101,68500.0,68499.0,0.29097582]
[1730623092662,0.101,68500.0,68499.0,0.65177582]
[1730623093357,0.101,68500.0,68499.0,0.74838344]
[1730623094262,0.101,68500.0,68499.0,0.65177582]
[1730623094769,0.101,68500.0,68499.0,0.74838804]
[1730623094968,0.13528109,68500.0,68499.0,0.57893486]
[1730623095165,0.22872903,68500.0,68499.0,0.46203155]
[1730623095360,0.27407465,68500.0,68499.0,0.53505055]
[1730623095667,0.27407465,68500.0,68499.0,0.43573055]
[1730623095866,0.27407465,68500.0,68499.0,0.53505055]
[1730623096066,0.22046594,68500.0,68499.0,0.53505055]
[1730623098461,0.36621394,68500.0,68499.0,0.53505055]
[1730623098971,0.246748,68500.0,68499.0,0.53505055]
[1730623099162,0.101,68500.0,68499.0,0.53505055]
[1730623100370,0.3634758,68500.0,68499.0,0.53505055]
[1730623100667,0.17287076,68500.0,68499.0,0.53505055]
[1730623101571,0.21769042,68500.0,68499.0,0.53505055]
[1730623101962,0.101,68500.0,68499.0,0.74871638]
[1730623103165,0.05716209,68500.0,68499.0,0.74871638]
[1730623104378,0.07903586,68500.0,68499.0,0.57637738]
[1730623104874,0.07903586,68500.0,68499.0,0.67834558]
[1730623105281,0.07903586,68500.0,68499.0,0.81239985]
[1730623106171,0.07903586,68500.0,68499.0,0.46012294]
[1730623108278,0.07903586,68500.0,68499.0,0.57555959]
[1730623109279,0.07903586,68500.0,68499.0,0.70906896]
[1730623109670,0.07903586,68500.0,68499.0,0.81115109]
[1730623109871,0.07903586,68500.0,68499.0,0.67710536]
[1730623110072,0.07903586,68500.0,68499.0,0.36271155]
[1730623110268,0.11887403,68500.0,68499.0,0.36271155]
[1730623110476,0.07903586,68500.0,68499.0,0.36271155]
[1730623110666,0.19855037,68500.0,68499.0,0.36271155]
[1730623110868,0.22945037,68500.0,68499.0,0.36271155]
[1730623112075,0.18408631,68500.0,68499.0,0.36271155]
[1730623112982,0.22946822,68500.0,68499.0,0.36271155]
[1730623113677,0.22943956,68500.0,68499.0,0.36271155]
[1730623114068,0.10993586,68500.0,68499.0,0.36271155]
[1730623115384,0.18402413,68500.0,68499.0,0.36271155]
[1730623116183,0.10993586,68500.0,68499.0,0.36271155]
[1730623116972,0.10993586,68500.0,68499.0,0.3608]
[1730623117391,0.073019,68499.0,68498.0,0.06449494]
[1730623118583,0.073019,68499.0,68498.0,0.06549494]
[1730623119987,0.075019,68499.0,68498.0,0.06649494]
[1730623123380,0.075019,68499.0,68498.0,0.27934963]
[1730623125388,0.075019,68499.0,68498.0,0.16360188]
[1730623126290,0.14605534,68508.0,68499.0,0.43796]
[1730623126495,0.14605534,68508.0,68507.0,0.56279988]
[1730623126694,0.14605534,68508.0,68507.0,2.06279988]
[1730623126992,0.14605534,68508.0,68507.0,2.38194024]
[1730623127180,0.14605534,68508.0,68507.0,2.81986024]
[1730623127583,0.14805534,68508.0,68507.0,2.81986024]
[1730623128485,0.002,68508.0,68507.0,2.91696718]
[1730623129790,0.002,68508.0,68507.0,3.03138924]
[1730623130184,0.04399066,68522.0,68507.0,2.4559643]
[1730623130386,0.072994,68522.0,68521.0,0.06449494]
[1730623131896,0.072994,68522.0,68521.0,0.06549494]
[1730623132191,0.072994,68522.0,68521.0,0.06649494]
[1730623132386,0.072999,68518.0,68514.0,0.3084197]
[1730623132581,0.12212124,68517.0,68514.0,0.3084197]
[1730623132785,0.17694435,68516.0,68515.0,0.073002]
[1730623132984,0.12212124,68516.0,68515.0,0.073002]
[1730623133884,0.17694435,68516.0,68515.0,0.073002]
[1730623134083,0.17694435,68516.0,68515.0,0.074002]
[1730623134691,0.17694435,68516.0,68515.0,0.075002]
[1730623136691,0.17694435,68516.0,68515.0,0.13949694]
[1730623137099,0.17694435,68516.0,68515.0,0.06649494]
[1730623137298,0.19512224,68516.0,68515.0,0.002]
[1730623137806,0.69745718,68516.0,68507.0,0.36378939]
[1730623138096,0.13750394,68508.0,68507.0,0.36298939]
[1730623138303,0.25962518,68508.0,68507.0,0.36298939]
[1730623138489,0.74991132,68508.0,68507.0,0.36298939]
[1730623138995,0.69943069,68508.0,68507.0,0.36298939]
[1730623139190,0.74424987,68508.0,68507.0,0.36298939]
[1730623139585,0.67975493,68508.0,68507.0,0.36298939]
[1730623140503,0.510929,68508.0,68507.0,0.00318939]
[1730623140687,0.510929,68508.0,68507.0,0.001]
[1730623141089,0.540929,68508.0,68507.0,0.001]
[1730623141392,0.540929,68508.0,68501.0,0.04363566]
[1730623141393,0.65070293,68508.0,68501.0,0.04363566]
[1730623141590,0.073017,68501.0,68500.0,0.04363566]
[1730623141994,0.136817,68501.0,68500.0,0.04363566]
[1730623143101,0.136817,68501.0,68500.0,0.04663566]
[1730623143395,0.136817,68501.0,68500.0,0.003]
[1730623143584,0.136817,68501.0,68500.0,0.04663566]
[1730623143784,0.136817,68501.0,68500.0,0.04963566]
[1730623144499,0.136817,68501.0,68500.0,0.04363566]
[1730623144700,0.137817,68501.0,68500.0,0.04363566]
[1730623145085,0.0648,68501.0,68499.0,0.04363566]
[1730623145395,0.073018,68500.0,68499.0,0.04363566]
[1730623145895,0.073018,68500.0,68498.0,0.3608]
[1730623146097,0.073019,68499.0,68498.0,0.3608]
[1730623146299,0.046037,68500.0,68498.0,0.3608]
[1730623146897,0.073019,68499.0,68498.0,0.3608]
[1730623147492,0.10526912,68499.0,68498.0,0.3608]
[1730623148300,0.10626912,68499.0,68498.0,0.3608]
[1730623151301,0.10630238,68499.0,68498.0,0.3608]
[1730623155514,0.001,68499.0,68498.0,0.45901349]
[1730623155812,0.001,68499.0,68498.0,0.45901342]
[1730623155813,0.074019,68499.0,68498.0,0.45901342]
[1730623162506,0.10671746,68499.0,68498.0,0.3608]
[1730623163505,0.07302,68498.0,68497.0,0.13751494]
[1730623163702,0.10571846,68498.0,68497.0,0.13751494]
[1730623164303,0.10571846,68498.0,68497.0,0.06449494]
[1730623166914,0.10571846,68498.0,68497.0,0.13751594]
[1730623167307,0.14393322,68498.0,68497.0,0.13751594]
[1730623168309,0.14393322,68498.0,68497.0,0.06449494]
[1730623168711,0.11772938,68503.0,68496.0,1.5008]
[1730623168908,0.073021,68497.0,68496.0,1.5]
[1730623169810,0.1443499,68497.0,68496.0,1.5]
[1730623170007,0.1443499,68497.0,68496.0,1.501]
[1730623170511,0.26481501,68503.0,68496.0,1.85127907]
[1730623170812,0.07302,68498.0,68497.0,0.2147156]
[1730623173112,0.07302,68498.0,68497.0,0.2877366]
[1730623174413,0.07302,68498.0,68497.0,0.28720838]
[1730623175718,0.07302,68498.0,68497.0,0.42248821]
[1730623175914,0.07302,68498.0,68497.0,0.52456428]
[1730623176726,0.07302,68498.0,68497.0,0.42248821]
[1730623177919,0.07302,68498.0,68497.0,0.34946721]
[1730623179013,0.07302,68498.0,68497.0,0.34957245]
[1730623179611,0.07302,68498.0,68497.0,0.28730345]
[1730623182235,0.07302,68498.0,68497.0,0.21428245]
[1730623184114,0.07302,68498.0,68497.0,0.11652415]
[1730623184717,0.073021,68497.0,68496.0,1.66733426]
[1730623185020,0.073021,68497.0,68496.0,1.66657426]
[1730623185421,0.073021,68497.0,68496.0,1.88067489]
[1730623185927,0.073021,68497.0,68496.0,1.88167489]
[1730623186126,0.073021,68497.0,68496.0,1.88267489]
[1730623186324,0.073021,68497.0,68496.0,1.76624961]
[1730623186916,0.073021,68497.0,68496.0,1.66857426]
[1730623191228,0.073021,68497.0,68496.0,1.56649494]
[1730623192529,0.073021,68497.0,68496.0,1.63951694]
[1730623192725,0.073014,68504.0,68496.0,1.63098988]
[1730623192928,0.40380614,68506.0,68505.0,0.073012]
[1730623192929,0.11601714,68506.0,68505.0,0.073012]
[1730623193130,0.11601714,68506.0,68505.0,0.13750694]
[1730623193724,0.11601714,68506.0,68505.0,0.06449494]
[1730623194434,0.11601714,68506.0,68505.0,0.06549494]
[1730623194820,0.11701714,68506.0,68505.0,0.06449494]